{"text_format":"1","workbook":"xlsx","n_sheets":2,"sheets":["DadosAnalizar","Tabela"],"not_rendered":{"charts":0,"images":0,"macros":0,"external_links":0,"defined_names":0,"comments":0,"pivot_tables":0},"unopened":[],"bounds":{"document_bytes":16777216,"sheet_cells":100000,"rows_first":2000,"rows_last":500,"rows_between":2000,"halvings":0,"cell_chars":16384,"cell_head_chars":4096},"cells_cut":0,"cells_raw":0,"read":"whole","date_system":"1900"}

{"sheet":"DadosAnalizar","index":0,"n_rows":464,"n_cols":2,"rows_kept":464,"cut":false,"hidden":false,"merged":[]}
[null,"ResultBet1"]
[null,"Pending"]
[null,"Pending"]
[null,"Pending"]
[null,"Pending"]
[null,"Pending"]
[null,"Pending"]
[null,"Pending"]
[null,"Lose"]
[null,"Pending"]
[null,"Win"]
[null,"Win"]
[null,"Lose"]
[null,"Void"]
[null,"Lose"]
[null,"Pending"]
[null,"Win"]
[null,"Void"]
[null,"Lose"]
[null,"Lose"]
[null,"Win"]
[null,"Lose"]
[null,"Win"]
[null,"Win"]
[null,"Lose"]
[null,"Lose"]
[null,"Lose"]
[null,"Lose"]
[null,"Lose"]
[null,"Lose"]
[null,"Win"]
[null,"Win"]
[null,"Win"]
[null,"Win"]
[null,"Lose"]
[null,"Win"]
[null,"Lose"]
[null,"Lose"]
[null,"Win"]
[null,"Win"]
[null,"Win"]
[null,"Win"]
[null,"Lose"]
[null,"Win"]
[null,"Win"]
[null,"HalfWin"]
[null,"Win"]
[null,"Lose"]
[null,"Void"]
[null,"Lose"]
[null,"Win"]
[null,"Win"]
[null,"Win"]
[null,"Win"]
[null,"Win"]
[null,"Win"]
[null,"Lose"]
[null,"Win"]
[null,"Win"]
[null,"Void"]
[null,"Lose"]
[null,"Win"]
[null,"Lose"]
[null,"Win"]
[null,"Void"]
[null,"Win"]
[null,"Win"]
[null,"Win"]
[null,"Lose"]
[null,"HalfWin"]
[null,"Win"]
[null,"Win"]
[null,"Void"]
[null,"Lose"]
[null,"Lose"]
[null,"Win"]
[null,"Lose"]
[null,"Lose"]
[null,"Win"]
[null,"Win"]
[null,"Lose"]
[null,"Lose"]
[null,"Win"]
[null,"Lose"]
[null,"Win"]
[null,"Win"]
[null,"Lose"]
[null,"Win"]
[null,"Win"]
[null,"Lose"]
[null,"Win"]
[null,"Lose"]
[null,"Void"]
[null,"Lose"]
[null,"Win"]
[null,"Win"]
[null,"Lose"]
[null,"Lose"]
[null,"Win"]
[null,"Lose"]
[null,"Win"]
[null,"Lose"]
[null,"HalfLose"]
[null,"Lose"]
[null,"Lose"]
[null,"Win"]
[null,"Lose"]
[null,"Win"]
[null,"Lose"]
[null,"Win"]
[null,"HalfWin"]
[null,"Win"]
[null,"Win"]
[null,"Win"]
[null,"Lose"]
[null,"Void"]
[null,"Lose"]
[null,"Lose"]
[null,"Win"]
[null,"Win"]
[null,"Win"]
[null,"Win"]
[null,"Win"]
[null,"HalfWin"]
[null,"Lose"]
[null,"Lose"]
[null,"Win"]
[null,"Void"]
[null,"Lose"]
[null,"Win"]
[null,"Win"]
[null,"Lose"]
[null,"Void"]
[null,"Win"]
[null,"Win"]
[null,"Lose"]
[null,"Win"]
[null,"Lose"]
[null,"Lose"]
[null,"Lose"]
[null,"Lose"]
[null,"Lose"]
[null,"Win"]
[null,"Lose"]
[null,"Win"]
[null,"Win"]
[null,"Win"]
[null,"Win"]
[null,"Lose"]
[null,"Lose"]
[null,"Lose"]
[null,"Win"]
[null,"Win"]
[null,"Win"]
[null,"Lose"]
[null,"Lose"]
[null,"Lose"]
[null,"Lose"]
[null,"Win"]
[null,"Win"]
[null,"Win"]
[null,"Win"]
[null,"Lose"]
[null,"Win"]
[null,"Win"]
[null,"Void"]
[null,"Win"]
[null,"Lose"]
[null,"Lose"]
[null,"HalfLose"]
[null,"HalfWin"]
[null,"Win"]
[null,"Void"]
[null,"Lose"]
[null,"Win"]
[null,"Lose"]
[null,"Win"]
[null,"Lose"]
[null,"HalfLose"]
[null,"Win"]
[null,"Win"]
[null,"Lose"]
[null,"Lose"]
[null,"Win"]
[null,"Lose"]
[null,"Lose"]
[null,"Win"]
[null,"Lose"]
[null,"Lose"]
[null,"Lose"]
[null,"Lose"]
[null,"Void"]
[null,"HalfLose"]
[null,"Win"]
[null,"Lose"]
[null,"Void"]
[null,"Lose"]
[null,"Win"]
[null,"Win"]
[null,"Win"]
[null,"Lose"]
[null,"Win"]
[null,"Win"]
[null,"Lose"]
[null,"Lose"]
[null,"Lose"]
[null,"Win"]
[null,"HalfLose"]
[null,"Lose"]
[null,"Win"]
[null,"Lose"]
[null,"Lose"]
[null,"Lose"]
[null,"Win"]
[null,"Lose"]
[null,"Void"]
[null,"Win"]
[null,"Lose"]
[null,"Lose"]
[null,"Lose"]
[null,"Lose"]
[null,"Win"]
[null,"Win"]
[null,"Win"]
[null,"Win"]
[null,"Win"]
[null,"Lose"]
[null,"Lose"]
[null,"Win"]
[null,"Win"]
[null,"Win"]
[null,"Win"]
[null,"Lose"]
[null,"Lose"]
[null,"Lose"]
[null,"Lose"]
[null,"Win"]
[null,"Win"]
[null,"Win"]
[null,"Lose"]
[null,"Win"]
[null,"Void"]
[null,"Void"]
[null,"Win"]
[null,"Lose"]
[null,"Lose"]
[null,"Void"]
[null,"Win"]
[null,"Win"]
[null,"Lose"]
[null,"Win"]
[null,"Lose"]
[null,"Lose"]
[null,"Win"]
[null,"Lose"]
[null,"Win"]
[null,"Win"]
[null,"Lose"]
[null,"Lose"]
[null,"Lose"]
[null,"Void"]
[null,"Void"]
[null,"Win"]
[null,"Win"]
[null,"Win"]
[null,"Lose"]
[null,"Lose"]
[null,"Win"]
[null,"Void"]
[null,"Void"]
[null,"Win"]
[null,"Lose"]
[null,"Lose"]
[null,"Win"]
[null,"Lose"]
[null,"Win"]
[null,"Lose"]
[null,"Lose"]
[null,"Lose"]
[null,"Win"]
[null,"Win"]
[null,"Lose"]
[null,"Void"]
[null,"Lose"]
[null,"Win"]
[null,"Win"]
[null,"Win"]
[null,"Win"]
[null,"Lose"]
[null,"Win"]
[null,"Lose"]
[null,"Win"]
[null,"Lose"]
[null,"Lose"]
[null,"Lose"]
[null,"Lose"]
[null,"Lose"]
[null,"Win"]
[null,"Win"]
[null,"Win"]
[null,"Lose"]
[null,"Lose"]
[null,"Lose"]
[null,"Void"]
[null,"Win"]
[null,"Lose"]
[null,"Lose"]
[null,"Win"]
[null,"Win"]
[null,"Win"]
[null,"Lose"]
[null,"Win"]
[null,"Win"]
[null,"Lose"]
[null,"Lose"]
[null,"Lose"]
[null,"Win"]
[null,"Win"]
[null,"Win"]
[null,"Win"]
[null,"Win"]
[null,"Lose"]
[null,"Win"]
[null,"Lose"]
[null,"Lose"]
[null,"Lose"]
[null,"Win"]
[null,"Lose"]
[null,"Win"]
[null,"Lose"]
[null,"Win"]
[null,"Lose"]
[null,"Win"]
[null,"Lose"]
[null,"Win"]
[null,"Lose"]
[null,"Lose"]
[null,"Void"]
[null,"Lose"]
[null,"Win"]
[null,"Lose"]
[null,"Win"]
[null,"Lose"]
[null,"Win"]
[null,"Win"]
[null,"Win"]
[null,"Win"]
[null,"Lose"]
[null,"Lose"]
[null,"Win"]
[null,"Win"]
[null,"Void"]
[null,"Win"]
[null,"Win"]
[null,"Lose"]
[null,"Lose"]
[null,"Lose"]
[null,"Lose"]
[null,"Lose"]
[null,"Win"]
[null,"Win"]
[null,"Win"]
[null,"Void"]
[null,"Win"]
[null,"Win"]
[null,"Lose"]
[null,"Win"]
[null,"Win"]
[null,"Void"]
[null,"Lose"]
[null,"Win"]
[null,"Win"]
[null,"Lose"]
[null,"Lose"]
[null,"Win"]
[null,"Win"]
[null,"Win"]
[null,"Win"]
[null,"Lose"]
[null,"Win"]
[null,"Lose"]
[null,"Lose"]
[null,"Win"]
[null,"Lose"]
[null,"Win"]
[null,"Lose"]
[null,"Win"]
[null,"Win"]
[null,"Win"]
[null,"Lose"]
[null,"Void"]
[null,"Lose"]
[null,"Lose"]
[null,"Win"]
[null,"HalfWin"]
[null,"Lose"]
[null,"Lose"]
[null,"Lose"]
[null,"Win"]
[null,"Win"]
[null,"Lose"]
[null,"Lose"]
[null,"Win"]
[null,"Win"]
[null,"Lose"]
[null,"Win"]
[null,"Win"]
[null,"Win"]
[null,"Win"]
[null,"Lose"]
[null,"Lose"]
[null,"Lose"]
[null,"Lose"]
[null,"Lose"]
[null,"Win"]
[null,"Lose"]
[null,"Win"]
[null,"Win"]
[null,"Lose"]
[null,"Lose"]
[null,"Win"]
[null,"Void"]
[null,"Lose"]
[null,"Lose"]
[null,"Lose"]
[null,"HalfWin"]
[null,"Lose"]
[null,"Lose"]
[null,"Lose"]
[null,"Lose"]
[null,"Win"]
[null,"Void"]
[null,"Win"]
[null,"Void"]
[null,"HalfLose"]
[null,"Win"]
[null,"HalfWin"]
[null,"Lose"]
[null,"Lose"]
[null,"Win"]
[null,"Win"]
[null,"Win"]
[null,"Win"]
[null,"Win"]
[null,"Lose"]
[null,"Lose"]
[null,"HalfWin"]
[null,"Lose"]
[null,"Win"]
[null,"Win"]
[null,"Lose"]
[null,"Win"]
[null,"Lose"]
[null,"Lose"]
[null,"Win"]
[null,"Win"]
[null,"Win"]
[null,"HalfLose"]
[null,"Win"]
[null,"Lose"]
[null,"Lose"]
[null,"Lose"]
[null,"Lose"]
[null,"Lose"]

{"sheet":"Tabela","index":1,"n_rows":8,"n_cols":23,"rows_kept":8,"cut":false,"hidden":false,"merged":[[1,1,2,1],[1,2,1,22]]}
[]
[null,null,"Sequências Seguidas"]
[null,null,20,{"$f":"C3-1","v":19},{"$f":"D3-1","v":18},17,16,15,14,13,12,11,10,9,8,7,6,5,4,3,2,1,0]
[null,"Win"]
[null,"Lose"]
[null,"HalfWin"]
[null,"HalfLose"]
[null,"Void"]